Workbook

Sheet u_simple
A1: Изчисляване на неопределеността при проста функция Y = f(X)
C7: j= | D7: 1
A9: ТИП | D9: Xi | E9: u_xi | F9: u_r | G9: X_1 | H9: X_2 | I9: X_3
A10: B | B10: ppb | C10: X_1 | D10: 4 | E10: 0.01 | F10: =E10/D10 -> 0.0025 | G10: =$D10+E10 -> 4.01 | H10: =$D10 -> 4 | I10: =$D10 -> 4
A11: A | B11: ratio | C11: X_2 | D11: 0.4 | E11: 0.01 | F11: =E11/D11 -> 0.025 | G11: =$D11 -> 0.4 | H11: =$D11+E11 -> 0.41 | I11: 0.4
A12: A | B12: ratio | C12: X_3 | D12: 0.2 | E12: 0.01 | F12: =E12/D12 -> 0.05 | G12: 0.2 | H12: 0.2 | I12: =$D12+E12 -> 0.21
E13: u_c(Y) | F13: u_c(Y)r
B14: ppb | C14: C_x | D14: =D10+$D$7*D11+D12 -> 4.6 | E14: =SQRT(J16) -> 0.01732050808 | F14: =E14/D14 -> 0.003765327843 | G14: =G10+$D$7*G11+G12 -> 4.61 | H14: =H10+$D$7*H11+H12 -> 4.61 | I14: 4.61
F15: разлики | G15: =$D$14-G14 -> -0.01 | H15: =$D$14-H14 -> -0.01 | I15: -0.01
F16: квадрати | G16: =G15*G15 -> 0.0001 | H16: =H15*H15 -> 0.0001 | I16: =I15*I15 -> 0.0001 | J16: =SUM(G16:I16) -> 0.0003
F18: приноси | G18: X_1 | H18: X_2 | I18: X_3
G19: =G16/$J$16 -> 0.3333333333 | H19: =H16/$J$16 -> 0.3333333333 | I19: 0.3333333333

Sheet interference
C1: INTERFERENCE | AD1: Y St A.s | AE1: X ug /L | AF1: Y matrix
C2: Multiplicative | AD2: 0 | AE2: 0 | AF2: =AD2*0.1*$D$3+0.01*$D$7 -> 0
C3: b1 (10) | D3: 10 | AD3: 0.081 | AE3: 20 | AF3: 0.081
AA4: =SLOPE(AF1:AF7,AE1:AE7) -> 0.003993791209 | AD4: 0.197 | AE4: 50 | AF4: 0.197
H5: ∆ (Cst-Cmx) = | I5: =I9-I8 -> 0 | J5: ppb | AA5: =INTERCEPT(AF3:AF7,AE3:AE7) -> 0.0002073170732 | AD5: 0.4055 | AE5: 100 | AF5: 0.4055
C6: Additive | H6: ∆ %= | I6: =(I9-I8)/I9 -> 0 | AD6: 0.5925 | AE6: 150 | AF6: 0.5925
C7: b0 (0) | D7: 0 | X7: 0.01 | AD7: 0.8015 | AE7: 200 | AF7: 0.8015
H8: C_st= | I8: =AC15 -> 48.78111235 | J8: ppb | AD8: =SLOPE(AD3:AD7,AE3:AE7) -> 0.003993198874 | AE8: b1 и b1m | AF8: =SLOPE(AF3:AF7,AE3:AE7) -> 0.003993198874
H9: C_mx= | I9: =AC18 -> 48.78111235 | J9: ppb | AD9: =INTERCEPT(AD3:AD7,AE3:AE7) -> 0.0002073170732 | AE9: b0 и b0m | AF9: =INTERCEPT(AF3:AF7,AE3:AE7) -> 0.0002073170732
AB12: 65
AB13: Y samp | AC13: X | AD13: Y1 | AE13: X | AF13: Y2
AB14: =X7*0.3*AB12 -> 0.195 | AC14: 0.01 | AD14: =AB14 -> 0.195 | AE14: =AC15 -> 48.78111235 | AF14: 0
AC15: =(AB14-AF9)/AF8 -> 48.78111235 | AD15: =AB14 -> 0.195 | AE15: =AC15 -> 48.78111235 | AF15: =AB14 -> 0.195
AB16: Y samp | AC16: X | AD16: Y1 | AE16: X | AF16: Y2
AB17: =AB14 -> 0.195 | AC17: 0.01 | AD17: =AB17 -> 0.195 | AE17: =AC18 -> 48.78111235 | AF17: 0
AC18: =(AB17-AD9)/AD8 -> 48.78111235 | AD18: =AB17 -> 0.195 | AE18: =AC18 -> 48.78111235 | AF18: =AB17 -> 0.195
AF20: =CORREL(AD2:AD7,AE2:AE7) -> 0.9999002491
AF21: =AF20*AF20 -> 0.9998005081
C27: Correl= | D27: =CORREL(AD2:AD7,AE2:AE7) -> 0.9999002491 | G27: R2= | H27: =D27*D27 -> 0.9998005081
N55: a= | O55: 0
N57: X | O57: Y
N58: 0 | O58: =(N58*200)-($O$55*N58^2)+10 -> 10
N59: 2.3 | O59: =(N59*200)-($O$55*N59^2)+10 -> 470
N60: 4.6 | O60: 930
N61: 7 | O61: 1410
N62: 11 | O62: 2210
O63: R= | P63: R2=
O64: =CORREL(N58:N62,O58:O62) -> 1 | P64: =O64*O64 -> 1
X671: Разработка за учебни цели ВК

Sheet Horwitz
A1: Хорвиц - тромпет
G2: Horwitz - 1982
Y7: C m/m | Z7: +RSD | AA7: -RDS | AB7: SD
Y8: 1 | Z8: =2^(1-(0.5*LOG(Y8))) -> 2 | AA8: =-Z8 -> -2 | AB8: =0.02*(Y8^0.8495) -> 0.02 | AC8: =AB8/Y8 -> 0.02
Y9: 0.1 | Z9: =2^(1-(0.5*LOG(Y9))) -> 2.828427125 | AA9: =-Z9 -> -2.828427125 | AB9: =0.02*(Y9^0.8495) -> 0.00282832945 | AC9: 0.0282832945
Y10: 0.001 | Z10: 5.656854249 | AA10: -5.656854249 | AB10: 5.656268222e-05 | AC10: 0.05656268222
Y11: 0.0001 | Z11: 8 | AA11: -8 | AB11: 7.998894995e-06 | AC11: 0.07998894995
Y12: 1e-05 | Z12: 11.3137085 | AA12: -11.3137085 | AB12: 1.131175514e-06 | AC12: 0.1131175514
Y13: 1e-06 | Z13: 16 | AA13: -16 | AB13: 1.59966851e-07 | AC13: 0.159966851
Y14: 1e-07 | Z14: =2^(1-(0.5*LOG(Y14))) -> 22.627417 | AA14: -22.627417 | AB14: 2.262194779e-08 | AC14: 0.2262194779
Y15: 1e-08 | Z15: =2^(1-(0.5*LOG(Y15))) -> 32 | AA15: -32 | AB15: 3.199116057e-09 | AC15: 0.3199116057
Y16: 1e-09 | Z16: 45.254834 | AA16: -45.254834 | AB16: 4.52407708e-10 | AC16: 0.452407708
Y17: 1e-10 | Z17: 64 | AA17: -64 | AB17: 6.397790219e-11 | AC17: 0.6397790219
Y18: 1e-12 | Z18: =2^(1-(0.5*LOG(Y18))) -> 128 | AA18: =-Z18 -> -128 | AB18: 1.279469671e-12 | AC18: =AB18/Y18 -> 1.279469671
C22: 2 | F22: Задай концентрация като отношение
B23: C(m/M)= | C23: =POWER(10,-C22) -> 0.01 | F23: C(m/M)= | G23: 0.1
B24: (+-RSD)= | C24: =2^(1-(0.5*LOG(C23))) -> 4 | F24: (+-RSD)= | G24: =2^(1-(0.5*LOG(G23))) -> 2.828427125
C25: =-C24 -> -4
B27: SD_H= | C27: =0.02*C23^0.8495 -> 0.0003999723739 | E27: Michael Thompson and Roger Wood - Using uncertainty to predict and specify the performance of analytical method
B28: RSD_H= | C28: =C27/C23 -> 0.03999723739 | E28: LOD | F28: α | G28: C | I28: Horwiz RSD% | J28: Max u_
E29: =E33*H29 -> 3.4e-07 | F29: =F33 -> 0.2 | G29: =G33*H29 -> 7.8e-07 | H29: =10^-H30 -> 1e-07 | I29: =2^(1-(0.5*LOG(G29))) -> 16.60968374 | J29: =I29*G29/100 -> 1.295555332e-07
H30: 7
A31: relative standard uncertainty RSU | E31: 34 | F31: 20 | G31: 78 | I31: 500
E32: P | F32: Q | G32: C | I32: RSD
E33: =E31*0.1 -> 3.4 | F33: =F31*0.01 -> 0.2 | G33: =G31*0.1 -> 7.8 | I33: =I31*0.1 -> 50 | K33: X | L33: =G29 -> 7.8e-07 | N33: =L33 -> 7.8e-07 | O33: 0
D34: u | E34: =SQRT((E33)+(F33*(G33^2))) -> 3.945630495 | K34: Y= | L34: =SQRT(((E29/2)^2)+((F29*G29)^2)) -> 2.307292786e-07 | N34: =L33 -> 7.8e-07 | O34: =L34 -> 2.307292786e-07
F35: C | G35: u_r | H35: u_fit | I35: u_r - u_fit | J35: FFP неопределеност
A36: u | B36: =SQRT((($E$29/2)^2)+($F$29*((D36*$H$29)))^2) -> 1.700117643e-07 | D36: 0.1 | F36: =D36*$H$29 -> 1e-08 | G36: =B36 -> 1.700117643e-07 | H36: =F36*$I$33/100 -> 5e-09 | I36: =G36-H36 -> 1.650117643e-07 | J36: неопределеност на метода
B37: =SQRT((($E$29/2)^2)+($F$29*((D37*$H$29)))^2) -> 1.802775638e-07 | D37: 3 | F37: =D37*$H$29 -> 3e-07 | G37: 1.802775638e-07 | H37: =F37*$I$33/100 -> 1.5e-07 | I37: =G37-H37 -> 3.027756377e-08
B38: 2.069396047e-07 | D38: 5.9 | F38: 5.9e-07 | G38: 2.069396047e-07 | H38: 2.95e-07 | I38: -8.806039528e-08
B39: 2.446957294e-07 | D39: 8.8 | F39: 8.8e-07 | G39: 2.446957294e-07 | H39: 4.4e-07 | I39: -1.953042706e-07
B40: 2.892334697e-07 | D40: 11.7 | F40: 1.17e-06 | G40: 2.892334697e-07 | H40: 5.85e-07 | I40: -2.957665303e-07
B41: 3.378816361e-07 | D41: 14.6 | F41: 1.46e-06 | G41: 3.378816361e-07 | H41: 7.3e-07 | I41: -3.921183639e-07
B42: 3.891015292e-07 | D42: 17.5 | F42: 1.75e-06 | G42: 3.891015292e-07 | H42: 8.75e-07 | I42: -4.858984708e-07
B43: 4.42e-07 | D43: 20.4 | F43: 2.04e-06 | G43: 4.42e-07 | H43: 1.02e-06 | I43: -5.78e-07
B44: 4.960403209e-07 | D44: 23.3 | F44: 2.33e-06 | G44: 4.960403209e-07 | H44: 1.165e-06 | I44: -6.689596791e-07
B45: 5.508865582e-07 | D45: 26.2 | F45: 2.62e-06 | G45: 5.508865582e-07 | H45: 1.31e-06 | I45: -7.591134418e-07
B46: 6.063200475e-07 | D46: 29.1 | F46: 2.91e-06 | G46: 6.063200475e-07 | H46: 1.455e-06 | I46: -8.486799525e-07
B47: 6.621933252e-07 | D47: 32 | F47: 3.2e-06 | G47: 6.621933252e-07 | H47: 1.6e-06 | I47: -9.378066748e-07
B48: 7.184037862e-07 | D48: 34.9 | F48: 3.49e-06 | G48: 7.184037862e-07 | H48: 1.745e-06 | I48: -1.026596214e-06
B49: 7.748780549e-07 | D49: 37.8 | F49: 3.78e-06 | G49: 7.748780549e-07 | H49: 1.89e-06 | I49: -1.115121945e-06
B50: 8.315623849e-07 | D50: 40.7 | F50: 4.07e-06 | G50: 8.315623849e-07 | H50: 2.035e-06 | I50: =G50-H50 -> -1.203437615e-06
O53: X1= | P53: =M54 -> 0 | R53: Y1= | S53: 0
O54: X2= | P54: =M54 -> 0 | R54: Y2= | S54: =M53 -> 0
O56: X1= | P56: 0 | R56: Y1= | S56: =M53 -> 0
O57: X2= | P57: =M54 -> 0 | R57: Y2= | S57: =M53 -> 0
V681: Разработка за учебни цели ВК
